bitfinex/quotes_SOLUSD_20230104
["timestamp","ask_amount","ask_price","bid_price","bid_amount"]
[1672859194703,76.02,13.399,13.383,30.0]
[1672859195245,30.0,13.398,13.383,30.0]
[1672859195454,76.03,13.397,13.383,30.0]
[1672859195676,20.0,13.397,13.383,30.0]
[1672859197016,20.0,13.398,13.383,30.0]
[1672859197666,20.0,13.4,13.383,30.0]
[1672859197853,16.75985293,13.401,13.383,30.0]
[1672859198066,30.0,13.406,13.385,30.0]
[1672859198288,55.99,13.405,13.386,76.07]
[1672859198710,55.99,13.405,13.387,30.0]
[1672859198931,55.99,13.407,13.387,30.0]
[1672859199747,72.74985293,13.407,13.387,30.0]
[1672859200081,30.0,13.406,13.387,30.0]
[1672859200290,55.99,13.405,13.387,30.0]
[1672859200607,15.86,13.4,13.385,30.0]
[1672859200815,56.02,13.399,13.385,30.0]
[1672859201010,30.0,13.397,13.384,113.1409]
[1672859201224,20.0,13.396,13.384,113.1409]
[1672859201963,30.0,13.394,13.378,30.0]
[1672859202164,76.04,13.393,13.378,30.0]
[1672859202374,93.42635255,13.393,13.378,30.0]
[1672859202584,17.38635255,13.392,13.378,30.0]
[1672859202797,15.8,13.39,13.371,30.0]
[1672859203108,30.0,13.388,13.371,30.0]
[1672859203443,76.07,13.387,13.371,30.0]
[1672859203757,56.07,13.388,13.371,30.0]
[1672859203946,30.0,13.397,13.372,86.13]
[1672859204158,20.0,13.396,13.372,86.13]
[1672859204368,20.0,13.396,13.373,20.0]
[1672859204585,76.03,13.396,13.374,56.12]
[1672859204801,20.0,13.396,13.374,56.12]
[1672859205000,20.0,13.398,13.375,50.0]
[1672859205223,20.0,13.4,13.376,56.12]
[1672859205432,39.19899062,13.404,13.377,116.4777]
[1672859205770,30.0,13.402,13.38,30.0]
[1672859205952,56.01,13.401,13.382,30.0]
[1672859206683,56.0,13.403,13.382,30.0]
[1672859206893,56.0,13.403,13.384,30.0]
[1672859207100,56.0,13.403,13.385,20.0]
[1672859207311,55.99,13.407,13.386,56.07]
[1672859207545,55.98,13.409,13.386,56.07]
[1672859207749,55.98,13.409,13.386,77.8511836]
[1672859207942,55.98,13.409,13.387,30.0]
[1672859208151,55.98,13.409,13.388,56.07]
[1672859208372,55.98,13.409,13.389,30.0]
[1672859208579,55.98,13.409,13.39,56.06]
[1672859208996,55.98,13.409,13.391,30.0]
[1672859209205,55.98,13.409,13.391,146.7716]
[1672859209635,20.0,13.408,13.391,146.7716]
[1672859209831,75.98,13.409,13.391,146.7716]
[1672859210044,20.0,13.409,13.391,146.7716]
[1672859210273,20.0,13.41,13.391,146.7716]
[1672859210693,30.0,13.409,13.391,146.7716]
[1672859210907,20.0,13.408,13.391,146.7716]
[1672859211967,75.98,13.408,13.391,146.7716]
[1672859213094,75.98,13.408,13.391,116.7716]
[1672859213434,95.17899062,13.408,13.391,116.7716]
[1672859213959,95.17899062,13.408,13.392,30.0]
[1672859214809,145.37271874,13.408,13.392,30.0]
[1672859215845,95.17899062,13.408,13.392,30.0]
[1672859216464,30.0,13.407,13.392,30.0]
[1672859216675,75.99,13.406,13.392,30.0]
[1672859216884,30.0,13.405,13.392,30.0]
[1672859217636,75.99,13.406,13.392,30.0]
[1672859218037,20.0,13.406,13.392,30.0]
[1672859218479,20.0,13.408,13.392,30.0]
[1672859218692,85.99,13.407,13.392,30.0]
[1672859218908,85.99,13.407,13.391,116.7716]
[1672859218909,30.0,13.405,13.391,116.7716]
[1672859219121,30.0,13.405,13.389,30.0]
[1672859219122,85.99,13.405,13.389,30.0]
[1672859219346,85.99,13.405,13.384,116.7716]
[1672859219347,20.0,13.404,13.384,116.7716]
[1672859219540,56.0,13.403,13.384,116.7716]
[1672859219762,30.0,13.401,13.385,30.0]
[1672859219994,76.02,13.4,13.385,30.0]
[1672859220679,52.08263061,13.404,13.385,30.0]
[1672859220902,55.99,13.407,13.386,56.07]
[1672859221106,20.0,13.406,13.386,56.07]
[1672859221642,20.0,13.408,13.386,77.8511836]
[1672859221856,20.0,13.408,13.387,30.0]
[1672859222065,20.0,13.408,13.388,56.07]
[1672859222282,20.0,13.409,13.388,56.07]
[1672859222595,55.98,13.408,13.388,56.07]
[1672859222803,30.0,13.407,13.387,30.0]
[1672859223011,75.99,13.406,13.387,30.0]
[1672859223210,30.0,13.405,13.387,30.0]
[1672859223417,56.0,13.404,13.387,30.0]
[1672859223866,85.99,13.405,13.387,30.0]
[1672859225118,55.99,13.405,13.387,30.0]
[1672859225441,20.0,13.406,13.388,56.07]
[1672859225752,30.0,13.407,13.387,86.07]
[1672859225984,20.0,13.406,13.387,86.07]
[1672859226367,72.08263061,13.406,13.387,86.07]
[1672859226579,72.08263061,13.406,13.387,30.0]
[1672859226803,30.0,13.405,13.387,30.0]
[1672859227004,79.12,13.4,13.384,172.8516]
[1672859227212,76.02,13.399,13.384,116.7716]
[1672859227462,76.02,13.399,13.37,113.3939]
[1672859227463,128.10263061,13.399,13.373,56.13]
[1672859227809,15.85,13.39,13.373,56.13]
[1672859227947,76.06,13.389,13.37,113.3939]
[1672859228266,76.06,13.389,13.371,56.14]
[1672859228465,20.0,13.389,13.372,30.0]
[1672859229310,76.06,13.389,13.37,113.3939]
[1672859229741,76.06,13.389,13.371,30.0]
[1672859229949,76.06,13.389,13.371,51.7811836]
[1672859230140,76.06,13.389,13.371,30.0]
[1672859230780,30.0,13.388,13.37,113.3939]
[1672859231041,76.07,13.387,13.37,113.3939]
[1672859231203,30.0,13.386,13.37,113.3939]
[1672859231611,30.0,13.384,13.37,113.3939]
[1672859231931,30.0,13.384,13.366,56.16]
[1672859232166,76.09,13.383,13.363,111.4479]
[1672859232583,76.09,13.383,13.363,133.2290836]
[1672859232772,30.0,13.382,13.364,30.0]
[1672859232989,76.09,13.381,13.364,30.0]
[1672859233399,76.09,13.381,13.364,51.7811836]
[1672859233626,30.0,13.38,13.364,51.7811836]
[1672859233830,20.0,13.379,13.364,30.0]
[1672859234360,20.0,13.379,13.363,111.4479]
[1672859234556,86.11,13.378,13.363,111.4479]
[1672859234995,20.0,13.377,13.363,111.4479]
[1672859235199,56.12,13.376,13.363,111.4479]
[1672859235521,30.0,13.375,13.363,111.4479]
[1672859236562,86.12,13.375,13.363,111.4479]
[1672859237199,30.0,13.375,13.363,111.4479]
[1672859238469,86.12,13.376,13.363,111.4479]
[1672859239331,86.12,13.376,13.36,121.56124355]
[1672859239332,15.86,13.37,13.36,121.56124355]
[1672859239541,30.0,13.368,13.36,121.56124355]
[1672859239725,20.0,13.367,13.36,121.56124355]
[1672859239932,56.16,13.366,13.36,121.56124355]
[1672859240257,76.15,13.367,13.36,121.56124355]
[1672859240680,30.0,13.366,13.36,121.56124355]
[1672859242875,114.7869973,13.365,13.36,58.67094355]
[1672859243120,147.44162123,13.365,13.36,13.27024355]
[1672859243428,52.05923621,13.364,13.36,8.18024355]
[1672859243731,106.17,13.363,13.36,0.00024355]
[1672859243945,125.36899062,13.363,13.36,0.00024355]
[1672859244572,80.21712252,13.362,13.36,0.00024355]
[1672859244856,76.18,13.361,13.36,0.00024355]
[1672859244980,106.18,13.361,13.36,0.00024355]
[1672859248655,20.0,13.361,13.36,0.00024355]
[1672859249929,52.08263061,13.365,13.36,0.00024355]
[1672859249930,69.39271874,13.365,13.36,0.00024355]
[1672859250182,50.19372812,13.365,13.36,0.00024355]
[1672859250341,30.0,13.368,13.36,0.00024355]
[1672859250668,20.0,13.367,13.36,0.00024355]
[1672859253937,52.08263061,13.373,13.36,0.00024355]
[1672859254146,50.77919624,13.372,13.36,0.00024355]
[1672859254366,109.41,13.38,13.36,0.00024355]
[1672859254570,56.11,13.377,13.36,0.00024355]
[1672859254779,76.11,13.377,13.36,0.00024355]
[1672859254964,30.0,13.376,13.36,0.00024355]
[1672859255619,15.86,13.37,13.36,0.00024355]
[1672859255834,20.0,13.369,13.36,0.00024355]
[1672859256145,76.15,13.369,13.36,0.00024355]
[1672859256535,20.0,13.369,13.36,0.00024355]
[1672859256751,86.12,13.376,13.36,0.00024355]
[1672859256965,30.0,13.376,13.361,56.18]
[1672859257404,30.0,13.376,13.36,0.00024355]
[1672859258459,30.0,13.376,13.358,30.0]
[1672859258639,30.0,13.376,13.359,56.19]
[1672859258854,30.0,13.376,13.36,30.0]
[1672859259074,30.0,13.376,13.359,56.19]
[1672859259287,30.0,13.374,13.356,114.3577]
[1672859259488,76.13,13.373,13.356,114.3577]
[1672859259915,30.0,13.372,13.356,114.3577]
[1672859260122,30.0,13.37,13.356,114.3577]
[1672859260331,20.0,13.369,13.356,114.3577]
[1672859260538,76.15,13.369,13.356,114.3577]
[1672859263291,30.0,13.368,13.356,114.3577]
[1672859263609,20.0,13.367,13.356,114.3577]
[1672859266119,20.0,13.367,13.349,110.4936]
[1672859266448,86.16,13.366,13.349,110.4936]
[1672859266655,15.85,13.36,13.349,110.4936]
[1672859266911,76.19,13.359,13.349,110.4936]
[1672859267079,95.38899062,13.359,13.349,110.4936]
[1672859267398,49.19899062,13.358,13.349,110.4936]
[1672859267608,20.0,13.357,13.349,110.4936]
[1672859272404,20.0,13.359,13.35,30.0]
[1672859273042,56.17,13.363,13.35,30.0]
[1672859273257,56.15,13.367,13.35,30.0]
[1672859273689,30.0,13.366,13.35,30.0]
[1672859273998,56.16,13.365,13.349,110.4936]
[1672859274198,30.0,13.363,13.349,110.4936]
[1672859274407,76.17,13.362,13.349,110.4936]
[1672859274624,76.17,13.362,13.35,30.0]
[1672859275787,20.0,13.362,13.35,30.0]
[1672859275975,56.16,13.365,13.35,30.0]
[1672859276187,19.79583035,13.367,13.35,30.0]
[1672859276414,56.16,13.366,13.35,30.0]
[1672859276945,19.79583035,13.365,13.35,30.0]
[1672859277143,56.17,13.364,13.35,30.0]
[1672859277357,19.79583035,13.365,13.35,30.0]
[1672859277568,56.17,13.364,13.35,30.0]
[1672859277888,19.79583035,13.363,13.35,30.0]
[1672859278112,19.79583035,13.363,13.349,110.4936]
[1672859278293,56.17,13.362,13.349,110.4936]
[1672859278710,75.96583035,13.362,13.349,110.4936]
[1672859278925,19.79583035,13.362,13.349,110.4936]
[1672859279136,20.0,13.361,13.349,110.4936]
[1672859279471,91.77583035,13.36,13.349,110.4936]
[1672859279664,30.0,13.358,13.349,110.4936]
[1672859280092,20.0,13.357,13.349,110.4936]
[1672859281870,39.79583035,13.359,13.349,110.4936]
[1672859282085,39.79583035,13.359,13.344,30.0]
[1672859282288,19.79583035,13.358,13.344,30.0]
[1672859282509,20.0,13.357,13.342,112.7103]
[1672859282719,56.2,13.356,13.342,112.7103]
[1672859282929,75.99583035,13.356,13.342,112.7103]
[1672859283143,75.99583035,13.356,13.343,30.0]
[1672859283353,75.99583035,13.356,13.338,30.0]
[1672859283553,20.0,13.357,13.337,37.6497003]
[1672859283554,15.86,13.35,13.337,37.6497003]
[1672859283886,20.0,13.349,13.337,37.6497003]
[1672859284615,20.0,13.349,13.337,7.6497003]
[1672859285755,39.79583035,13.349,13.337,7.6497003]
[1672859285966,30.0,13.348,13.337,7.6497003]
[1672859286190,20.0,13.347,13.337,7.6497003]
[1672859287554,30.0,13.346,13.337,7.6497003]
[1672859287960,75.3694456,13.346,13.337,7.6497003]
[1672859294710,131.6094456,13.346,13.337,7.6497003]
[1672859295736,75.3694456,13.346,13.337,7.6497003]
[1672859295965,30.0,13.346,13.337,7.6497003]
[1672859296494,79.0094456,13.346,13.337,7.6497003]
[1672859296704,56.25,13.345,13.337,7.6497003]
[1672859296923,30.0,13.344,13.337,7.6497003]
[1672859297971,50.0,13.347,13.337,7.6497003]
[1672859297972,20.0,13.347,13.337,7.6497003]
[1672859298172,20.0,13.348,13.337,7.6497003]
[1672859300405,56.22,13.352,13.337,7.6497003]
[1672859300724,30.0,13.363,13.339,30.0]
[1672859300725,56.21,13.354,13.339,30.0]
[1672859301027,30.0,13.353,13.339,30.0]
[1672859302070,30.0,13.355,13.339,30.0]
[1672859302286,56.2,13.357,13.339,30.0]
[1672859302497,56.17,13.362,13.34,56.27]
[1672859302904,30.0,13.357,13.34,56.27]
[1672859303537,30.0,13.357,13.339,30.0]
[1672859303751,30.0,13.355,13.339,30.0]
[1672859305319,30.0,13.355,13.34,56.27]
[1672859305529,30.0,13.357,13.34,56.27]
[1672859305740,30.0,13.357,13.341,30.0]
[1672859306378,30.0,13.357,13.342,108.6475]
[1672859306688,30.0,13.357,13.343,30.0]
[1672859307873,56.19,13.358,13.343,30.0]
[1672859308071,30.0,13.356,13.343,30.0]
[1672859309353,30.0,13.356,13.342,108.6475]
[1672859309659,49.78128802,13.356,13.342,108.6475]
[1672859310204,105.98128802,13.356,13.342,108.6475]
[1672859311455,75.98128802,13.356,13.342,108.6475]
[1672859311661,19.78128802,13.356,13.342,108.6475]
[1672859311982,19.78128802,13.356,13.343,30.0]
[1672859312489,20.0,13.357,13.343,30.0]
[1672859312695,20.0,13.358,13.343,30.0]
[1672859313128,19.78128802,13.357,13.343,30.0]
[1672859314083,56.18,13.36,13.344,20.0]
[1672859314301,56.17,13.364,13.346,30.0]
[1672859314625,75.95128802,13.364,13.346,30.0]
[1672859315117,49.78128802,13.363,13.346,30.0]
[1672859317845,49.78128802,13.363,13.343,56.25]
[1672859318084,15.81,13.36,13.342,108.6475]
[1672859318289,76.19,13.359,13.342,108.6475]
[1672859318508,95.97128802,13.359,13.342,108.6475]
[1672859318721,49.78128802,13.358,13.342,108.6475]
[1672859318930,76.2,13.357,13.342,108.6475]
[1672859319141,95.98128802,13.357,13.342,108.6475]
[1672859319352,19.78128802,13.356,13.337,7.6497003]
[1672859319546,76.2,13.355,13.337,7.6497003]
[1672859319757,30.0,13.354,13.337,7.6497003]
[1672859319966,76.21,13.353,13.337,7.6497003]
[1672859320193,15.85,13.35,13.337,7.6497003]
[1672859320511,76.23,13.349,13.337,7.6497003]
[1672859320827,30.0,13.348,13.337,7.6497003]
[1672859321342,20.0,13.347,13.337,7.6497003]
[1672859322822,39.78128802,13.347,13.337,7.6497003]
[1672859323449,20.0,13.347,13.337,7.6497003]
[1672859323636,30.0,13.347,13.337,7.6497003]
[1672859324289,20.0,13.348,13.337,7.6497003]
[1672859324501,20.0,13.349,13.337,7.6497003]
[1672859324691,56.23,13.35,13.337,7.6497003]
[1672859324905,110.97411227,13.353,13.337,7.6497003]
[1672859325347,56.21,13.353,13.337,7.6497003]
[1672859325661,19.78128802,13.353,13.337,7.6497003]
[1672859326800,30.0,13.354,13.337,7.6497003]
[1672859327012,30.0,13.354,13.338,56.28]
[1672859327221,56.2,13.356,13.338,56.28]
[1672859327435,56.19,13.358,13.338,56.28]
[1672859327654,20.0,13.357,13.339,30.0]
[1672859327971,30.0,13.355,13.339,30.0]
[1672859328368,19.78128802,13.354,13.339,30.0]
[1672859328581,20.0,13.357,13.339,30.0]
[1672859328808,19.78128802,13.356,13.34,56.27]
[1672859329123,19.78128802,13.356,13.341,30.0]
[1672859329751,19.78128802,13.356,13.343,30.0]
[1672859331763,19.78128802,13.356,13.342,112.9529]
[1672859334390,86.2,13.357,13.342,112.9529]
[1672859334925,56.2,13.357,13.342,112.9529]
[1672859335108,20.0,13.358,13.342,112.9529]
[1672859335323,30.0,13.358,13.344,30.0]
[1672859335535,20.0,13.357,13.344,30.0]
[1672859335956,20.06291769,13.356,13.344,30.0]
[1672859336167,20.06291769,13.356,13.343,30.0]
[1672859336491,20.06291769,13.356,13.342,112.9529]
[1672859336713,76.26291769,13.356,13.342,112.9529]
[1672859337150,30.0,13.355,13.342,112.9529]
[1672859337318,20.06291769,13.355,13.342,112.9529]
[1672859337648,20.06291769,13.354,13.343,30.0]
[1672859338387,20.06291769,13.354,13.342,112.9529]
[1672859338991,56.21,13.353,13.342,112.9529]
[1672859339435,50.06291769,13.352,13.342,112.9529]
[1672859339750,22.97,13.35,13.337,7.6497003]
[1672859339941,76.23,13.349,13.337,7.6497003]
[1672859340160,30.0,13.348,13.337,7.6497003]
[1672859340367,50.06291769,13.348,13.337,7.6497003]
[1672859340577,20.0,13.347,13.337,7.6497003]
[1672859341093,40.06291769,13.347,13.337,7.6497003]
[1672859342681,94.82702996,13.347,13.337,7.6497003]
[1672859342895,151.06702996,13.347,13.337,7.6497003]
[1672859343515,30.0,13.346,13.337,7.6497003]
[1672859343941,1.62383854,13.345,13.337,7.6497003]
[1672859344153,104.82702996,13.346,13.337,7.6497003]
[1672859344359,30.0,13.343,13.337,7.6497003]
[1672859344781,89.75151894,13.343,13.337,7.6497003]
[1672859347084,153.32128645,13.343,13.337,7.6497003]
[1672859347309,1.0037726,13.342,13.337,7.6497003]
[1672859347524,30.0,13.342,13.337,7.6497003]
[1672859347726,123.32128645,13.341,13.337,0.0097003]
[1672859347940,30.0,13.34,13.323,56.34]
[1672859348142,112.70151894,13.34,13.323,56.34]
[1672859348354,59.75151894,13.339,13.323,56.34]
[1672859348777,50.06291769,13.338,13.323,56.34]
[1672859348994,93.56976751,13.338,13.323,56.34]
[1672859349202,1.34797547,13.336,13.323,56.34]
[1672859349397,59.75151894,13.337,13.323,56.34]
[1672859349613,59.75151894,13.335,13.323,56.34]
[1672859349940,22.99,13.34,13.323,56.34]
[1672859350346,22.99,13.34,13.324,30.0]
[1672859350556,22.99,13.34,13.325,56.33]
[1672859350767,103.45169217,13.34,13.323,56.34]
[1672859350987,30.0,13.339,13.323,56.34]
[1672859351409,89.75151894,13.339,13.323,56.34]
[1672859351626,110.46169217,13.339,13.323,56.34]
[1672859352241,89.75151894,13.339,13.324,30.0]
[1672859352468,59.75151894,13.339,13.325,56.33]
[1672859352658,59.75151894,13.339,13.323,56.34]
[1672859352876,189.09829296,13.339,13.316,56.37]
[1672859353195,189.09829296,13.339,13.327,73.597947]
[1672859353196,65.0039733,13.338,13.327,73.597947]
[1672859353407,8.02138431,13.336,13.327,73.597947]
[1672859353617,8.02138431,13.334,13.327,73.597947]
[1672859353835,76.3,13.333,13.327,50.007947]
[1672859354031,2.52540885,13.332,13.327,50.007947]
[1672859354239,30.0,13.33,13.327,50.007947]
[1672859354446,30.0,13.328,13.327,50.007947]
[1672859354653,50.0,13.328,13.327,50.007947]
[1672859354861,110.6857856,13.328,13.327,50.007947]
[1672859356872,167.0057856,13.328,13.327,50.007947]
[1672859357065,110.6857856,13.328,13.327,50.007947]
[1672859358134,167.0057856,13.328,13.327,50.007947]
[1672859358539,187.42240728,13.328,13.327,50.007947]
[1672859358749,187.42240728,13.328,13.327,0.007947]
[1672859358961,237.07158946,13.328,13.327,0.007947]
[1672859359604,0.06,13.325,13.322,49.53004087]
[1672859359827,30.0,13.323,13.307,115.55134087]
[1672859360048,22.87,13.32,13.307,115.55134087]
[1672859360266,30.0,13.321,13.307,115.55134087]
[1672859360572,50.41662168,13.321,13.307,145.61457087]
[1672859360997,79.64918218,13.323,13.308,56.4]
[1672859361182,15.96775925,13.319,13.309,29.5]
[1672859361819,20.41662168,13.322,13.308,56.4]
[1672859362353,1.08223557,13.321,13.307,145.61457087]
[1672859362564,1.19418507,13.321,13.308,53.9]
[1672859362781,20.41662168,13.321,13.308,53.9]
[1672859363190,2.48553221,13.32,13.307,145.61457087]
[1672859363406,2.48553221,13.32,13.308,56.4]
[1672859363619,20.41662168,13.321,13.307,145.61457087]
[1672859363827,44.59852931,13.32,13.307,145.61457087]
[1672859364039,43.41662168,13.32,13.307,145.61457087]
[1672859364252,30.0,13.319,13.307,145.61457087]
[1672859364462,2.04050935,13.318,13.307,145.61457087]
[1672859365397,4.74759459,13.319,13.308,56.4]
[1672859365815,4.74759459,13.319,13.309,30.0]
[1672859366033,20.41662168,13.32,13.308,56.4]
[1672859366243,1.44723461,13.319,13.307,145.61457087]
[1672859366437,20.41662168,13.32,13.307,145.61457087]
[1672859367827,20.41662168,13.32,13.308,56.4]
[1672859368023,20.41662168,13.32,13.307,145.61457087]
[1672859368440,1.51503876,13.319,13.308,30.0]
[1672859368658,20.41662168,13.32,13.308,30.0]
[1672859368868,5.31829912,13.323,13.308,30.0]
[1672859369281,30.0,13.324,13.309,56.4]
[1672859369494,1.63218363,13.323,13.309,56.4]
[1672859369725,44.33773444,13.324,13.309,56.4]
[1672859370041,0.06,13.325,13.31,30.0]
[1672859370253,0.06,13.325,13.311,56.39]
[1672859370567,57.43365412,13.331,13.313,30.0]
[1672859370779,86.29,13.335,13.314,76.38]
[1672859370972,30.0,13.335,13.314,76.38]
[1672859371190,21.01682119,13.333,13.315,30.0]
[1672859371400,23.1,13.33,13.316,56.37]
[1672859371809,30.0,13.329,13.316,56.37]
[1672859372229,21.01682119,13.328,13.314,76.38]
[1672859372866,21.01682119,13.328,13.314,56.38]
[1672859373085,50.0,13.327,13.31,30.0]
[1672859373620,70.93144581,13.327,13.31,30.0]
[1672859373831,70.93144581,13.327,13.311,56.39]
[1672859374035,70.93144581,13.327,13.312,30.0]
[1672859374249,50.0,13.327,13.312,30.0]
[1672859374985,160.63365412,13.327,13.311,56.39]
[1672859375197,104.31365412,13.327,13.311,56.39]
[1672859375810,74.31365412,13.327,13.312,30.0]
[1672859376035,20.0,13.327,13.312,30.0]
[1672859376237,45.7316811,13.327,13.311,56.39]
[1672859376441,77.26144581,13.326,13.308,86.4]
[1672859376654,30.0,13.325,13.308,86.4]
[1672859376861,50.93144581,13.325,13.308,86.4]
[1672859377092,20.93144581,13.324,13.308,86.4]
[1672859377400,30.0,13.323,13.308,86.4]
[1672859377606,86.34,13.323,13.306,56.41]
[1672859377836,20.93144581,13.322,13.306,56.41]
[1672859378137,20.93144581,13.322,13.308,30.0]
[1672859378767,30.0,13.323,13.308,30.0]
[1672859379289,50.93144581,13.323,13.308,30.0]
[1672859379482,50.93144581,13.323,13.306,56.41]
[1672859379688,23.1,13.32,13.307,115.55134087]
[1672859379899,30.0,13.318,13.307,115.55134087]
[1672859380247,20.0,13.317,13.307,115.55134087]
[1672859380430,40.93144581,13.317,13.307,115.55134087]
[1672859380641,20.93144581,13.316,13.307,115.55134087]
[1672859380851,30.0,13.315,13.307,115.55134087]
[1672859381283,20.93144581,13.314,13.307,115.55134087]
[1672859381906,20.93144581,13.314,13.302,30.075638]
[1672859382131,22.93,13.31,13.302,30.075638]
[1672859382558,20.93144581,13.309,13.302,30.075638]
[1672859383305,22.93,13.31,13.302,30.075638]
[1672859383494,20.93144581,13.311,13.302,30.075638]
[1672859383699,53.3827491,13.309,13.302,30.075638]
[1672859383910,30.0,13.308,13.302,30.075638]
[1672859384559,50.93144581,13.308,13.302,30.075638]
[1672859385274,20.93144581,13.308,13.302,30.075638]
[1672859385496,30.0,13.314,13.302,30.075638]
[1672859385714,21.57633823,13.312,13.302,30.075638]
[1672859386433,84.31365412,13.315,13.302,30.075638]
[1672859386875,54.31365412,13.315,13.302,30.075638]
[1672859387187,21.57633823,13.314,13.302,30.075638]
[1672859387924,20.98262565,13.314,13.302,30.075638]
[1672859388325,50.98262565,13.314,13.302,30.075638]
[1672859388740,96.71430675,13.314,13.302,30.075638]
[1672859389586,23.1,13.31,13.302,30.075638]
[1672859389814,30.0,13.309,13.302,30.075638]
[1672859390236,23.1,13.31,13.302,30.075638]
[1672859391175,44.08262565,13.31,13.302,30.075638]
[1672859391369,44.08262565,13.31,13.3,108.1633]
[1672859391580,240.62543554,13.31,13.294,56.46]
[1672859391807,30.0,13.308,13.293,109.1374]
[1672859392016,76.41,13.307,13.293,109.1374]
[1672859392235,192.95346252,13.307,13.29,65.7154428]
[1672859392428,2.86152866,13.303,13.291,30.103882]
[1672859392630,30.0,13.299,13.291,30.103882]
[1672859392958,76.44,13.298,13.291,30.103882]
[1672859393170,157.87946925,13.298,13.291,30.103882]
[1672859393385,111.43946925,13.297,13.291,30.103882]
[1672859393581,60.4568436,13.297,13.291,30.103882]
[1672859394115,54.31365412,13.299,13.291,30.103882]
[1672859394306,20.98262565,13.3,13.291,30.103882]
[1672859395383,104.53946925,13.3,13.291,30.103882]
[1672859396011,95.44397092,13.3,13.291,30.103882]
[1672859396539,155.90081452,13.3,13.291,30.103882]
[1672859396758,30.0,13.298,13.291,30.103882]
[1672859396948,56.45,13.297,13.291,30.103882]
[1672859397156,170.22364699,13.297,13.291,30.103882]
[1672859397496,30.0,13.295,13.291,30.103882]
[1672859397714,86.46,13.295,13.291,30.103882]
[1672859397896,137.83053782,13.296,13.291,30.103882]
[1672859398760,30.0,13.294,13.291,30.103882]
[1672859399155,146.84791217,13.294,13.291,30.103882]
[1672859399487,167.83053782,13.294,13.291,30.103882]
[1672859399679,137.83053782,13.294,13.291,30.103882]
[1672859399897,116.84791217,13.294,13.291,30.103882]
[1672859400314,30.0,13.309,13.291,30.103882]
[1672859400315,56.42,13.303,13.291,30.103882]
[1672859400526,56.4,13.308,13.292,30.0]
[1672859400732,56.4,13.309,13.293,110.191]
[1672859401059,20.98262565,13.305,13.293,110.191]
[1672859402517,158.97820831,13.31,13.293,110.191]
[1672859402724,20.98262565,13.307,13.294,30.0]
[1672859402946,20.98262565,13.307,13.294,86.46]
[1672859403700,20.98262565,13.307,13.294,30.0]
[1672859403886,171.81,13.31,13.294,30.0]
[1672859403887,23.02,13.31,13.294,30.0]
[1672859404100,20.98262565,13.311,13.295,76.46]
[1672859404631,30.0,13.319,13.296,30.0]
[1672859404846,20.98262565,13.317,13.297,56.45]
[1672859405057,20.98262565,13.317,13.298,30.0]
[1672859405383,20.98262565,13.317,13.299,56.44]
[1672859405698,20.98262565,13.317,13.3,30.0]
[1672859405909,20.98262565,13.317,13.301,56.43]